Cogmind - Beta 13 @@@ ROGUE MODE // 2024.07.23 @ 22:20:31 Player: ZergFTW Result: Destroyed by F4-EFN(R) with Subdweller Machine Gun Performance ------------- Evolutions (0) 0 Regions Visited (2) 400 Robots Destroyed (29) 145 Value Destroyed (738) 738 Prototype IDs (0) 0 Alien Tech Used (0) 0 Bonus (0) 0 TOTAL SCORE: 1283 Bonus ------- None Cogmind --------- Core Integrity 0/250 Matter 191/300 Energy 100/100 System Corruption 5% Temperature Cool (0) Movement Treading (160) Location -10/Subcaves Parts ------- > --- POWER (1) -------- (None) > --- PROPULSION (2) --- Light Treads Light Treads > --- UTILITY (2) ------ Large Storage Unit Structural Scanner > --- WEAPON (2) ------- Subdweller Machine Gun Heavy Battle Rifle > --- INVENTORY (15) --- Ion Engine Light Treads Light Treads Small Matter Pod (50) Light Armor Plating Autogun Autogun Autogun Autogun Battle Cannon Grenade Launcher Grenade Launcher Makeshift Spear Peak State ------------ > --- POWER ------------ Ion Engine > --- PROPULSION ------- Light Treads Light Treads > --- UTILITY ---------- Large Storage Unit Structural Scanner > --- WEAPON ----------- Subdweller Machine Gun Heavy Battle Rifle > --- INVENTORY -------- Ion Engine Light Treads Light Treads Light Treads Light Treads Small Matter Pod Light Armor Plating Autogun Autogun Autogun Autogun Subdweller Machine Gun Grenade Launcher Grenade Launcher Makeshift Spear [Rating: 13] Favorites ----------- Power Ion Engine Engine Ion Engine Propulsion Light Treads Treads Light Treads Utility Large Storage Unit Device Structural Scanner Storage Large Storage Unit Protection Light Armor Plating Weapon Autogun Ballistic Gun Autogun Piercing Weapon Makeshift Spear Build | -11 -10 -10 ------- Run | Yrd Mat Sub Slots Evolved . | . . . Power . | . . . Propulsion . | . . . Utility . | . . . Weapon . | . . . Parts Attached 31 | 6 12 13 Power 2 | 1 1 . Engine 2 | 1 1 . Core . | . . . Reactor . | . . . Propulsion 9 | 2 5 2 Treads 9 | 2 5 2 Leg . | . . . Wheel . | . . . Hover . | . . . Flight . | . . . Utility 10 | 1 4 5 Device 3 | . 1 2 Storage 2 | 1 1 . Processor . | . . . Hackware . | . . . Protection 5 | . 2 3 Artifact . | . . . Weapon 10 | 2 2 6 Energy Gun . | . . . Energy Cannon . | . . . Ballistic Gun 9 | 2 2 5 Ballistic Cannon . | . . . Launcher . | . . . Special Weapon . | . . . Impact Weapon . | . . . Slashing Weapon . | . . . Piercing Weapon 1 | . . 1 Special Melee Weapon . | . . . Unidentified Prototypes . | . . . Parts Lost 4 | . . 4 Power 1 | . . 1 Propulsion 2 | . . 2 Utility 1 | . . 1 Weapon . | . . . Highest Loss Streak 3 | . . 3 To Critical Strikes . | . . . Average Slot Usage (%) 97 | . 96 99 Engine 13 | . 14 13 Treads 27 | . 28 27 Device 6 | . . 10 Storage 14 | . 14 14 Protection 5 | . 8 3 Ballistic Gun 27 | . 28 27 Naked Turns . | . . . Heaviest Build 36 | 14 36 35 Greatest Support 40 | 40 40 40 Greatest Overweight (x) . | . . . Average Overweight (x) . | . . . Largest Inventory Capacity 15 | 8 15 15 Average Capacity 14 | 6 14 15 Most Carried 15 | 2 15 15 Average Carried 13 | 1 12 14 Final Capacity 15 | 8 15 15 Final Carried 15 | 2 15 13 Class Distribution -------------------- 80% | Mutant 19% | Scavenger-Mutant Dominant Class ---------------- Mutant | -10/Materials Mutant | -10/Subcaves Resources | -11 -10 -10 ----------- Run | Yrd Mat Sub Matter Collected 1259 | 196 753 310 Remotely . | . . . Salvage Created 1026 | . 811 215 Parts 70 | . 61 9 Haulers Intercepted 2 | . 2 . Recyclers Shooed 3 | . 3 . Parts Field Recycled . | . . . Retrieved Matter . | . . . Parts Self-Destructed 6 | . . 6 Prevented . | . . . Kills | -11 -10 -10 ------- Run | Yrd Mat Sub Combat Hostiles Destroyed 17 | . 11 6 Guns 17 | . 11 6 Classes Destroyed 6 | . 5 1 Worker 3 | . 3 . Builder 4 | . 4 . Hauler 2 | . 2 . Watcher 3 | . 3 . Grunt 11 | . 11 . Subdweller 6 | . . 6 Best Kill Streak 5 | . 5 2 Combat Bots Only 3 | . 3 2 Max Kills in Single Turn 2 | . 2 1 Gunslinging 1 | . 1 . Exploded . | . . . Melee . | . . . Uniques/NPCs Destroyed . | . . . Combat | -11 -10 -10 -------- Run | Yrd Mat Sub Hostile Shots Fired 114 | . 52 62 Missed 38 | . 21 17 Damage Taken 1372 | . 441 931 Core 251 | . 26 225 Absorbed by Shields . | . . . Redirected to Shielding 45 | . 45 . Regen/Repaired (Parts) 86 | . 86 . Core Remaining (%) 100 | 100 . . Volleys Fired 95 | . 59 36 Largest 2 | . 2 2 Hottest 63 | . 46 63 Shots Fired 192 | . 119 73 Gun 192 | . 119 73 Cannon . | . . . Launcher . | . . . Special . | . . . Kinetic 192 | . 119 73 Thermal . | . . . Explosive . | . . . Electromagnetic . | . . . Robot Hit Streak 13 | . 8 13 Robot Miss Streak 3 | . 3 2 Penetration Max . | . . . Secondary Targets 4 | . 3 1 Max Gunslinging Chain 1 | . 1 1 Shots Hit Robots 127 | . 68 59 Core Hits 45 | . 32 13 Critical Kills . | . . . Critical Parts Destroyed . | . . . Critical Strikes . | . . . Melee Attacks 1 | . . 1 Impact . | . . . Slashing . | . . . Piercing 1 | . . 1 Sneak Attacks . | . . . Combat Hostiles . | . . . Follow-up Attacks . | . . . Damage Inflicted 2077 | . 1129 948 Guns 2077 | . 1129 948 Cannons . | . . . Explosions . | . . . Melee . | . . . Ramming . | . . . Kinetic 2077 | . 1129 948 Thermal . | . . . Explosive . | . . . Electromagnetic . | . . . Impact . | . . . Slashing . | . . . Piercing . | . . . Highest Corruption 5 | . 5 5 Average Corruption 4 | . 3 5 Corruption Purged . | . . . Corruption Blocked . | . . . Effects 68 | . 30 38 Message Errors 15 | . 6 9 Matter Fused 16 | . 6 10 Heat Flow Errors 9 | . 5 4 Energy Discharges 7 | . 3 4 Parts Rejected 1 | . 1 . Parts Fused 1 | . 1 . Data Loss (minor) 9 | . 5 4 Data Loss (major) 4 | . 2 2 Misfires 5 | . 1 4 Weapon Failures 1 | . . 1 Overload Shots . | . . . Overflow Damage . | . . . Projectiles . | . . . Explosions . | . . . Melee . | . . . Knockbacks . | . . . Impact . | . . . Kinetic . | . . . Secondary . | . . . Self-Inflicted Damage . | . . . Shots . | . . . Rammed . | . . . Targets Rammed . | . . . Kicked . | . . . Crushed . | . . . Highest Temperature 259 | . 259 232 Average Temperature 48 | . 43 95 Received Heat Transfer 387 | . 237 150 Effects 1 | . 1 . Energy Bleed 1 | . 1 . Siege Activations . | . . . Robots Corrupted . | . . . Combat Hostiles . | . . . Parts Fried . | . . . Impact Corruptions . | . . . Robots Melted . | . . . Combat Hostiles . | . . . Parts Melted . | . . . Heat Transferred . | . . . Parts Sabotaged . | . . . Parts Stolen . | . . . Parts Stripped . | . . . Power Chain Reactions . | . . . Alert | -11 -10 -10 ------- Run | Yrd Mat Sub Peak Influence 176 | . 176 . Initial . | . . . Average 28 | . 29 . Maximum Alert Level . | . . . Low Security (%) 100 | 100 100 . Level 1 . | . . . Level 2 . | . . . Level 3 . | . . . Level 4 . | . . . Level 5 . | . . . High Security . | . . . Max Security . | . . . Squads Dispatched 2 | . 2 . Investigation 1 | . 1 . Extermination . | . . . Reinforcement 1 | . 1 . Assault . | . . . Garrison . | . . . Intercept . | . . . Searches Triggered . | . . . Construction Impeded . | . . . Haulers Reinforced . | . . . Active Scanning Responses . | . . . Cargo Convoy Interrupts . | . . . Stealth | -11 -10 -10 --------- Run | Yrd Mat Sub Distress Signals . | . . . Communications Jammed . | . . . Distress Signals . | . . . Times Spotted 22 | . 15 7 Peak Tracking Total 3 | . 3 2 Tactical Retreats . | . . . Traps | -11 -10 -10 ------- Run | Yrd Mat Sub Traps Triggered 5 | . 5 . Indirectly . | . . . Trap Hack Attempts . | . . . Triggered . | . . . Disarmed . | . . . Reprogrammed . | . . . Reused . | . . . Traps Extracted . | . . . Installed . | . . . Triggered . | . . . Machines | -11 -10 -10 ---------- Run | Yrd Mat Sub Machines Disabled 1 | . 1 . Max in Single Turn 1 | . 1 . Machines Repaired . | . . . Machines Dismantled . | . . . Machines Sabotaged . | . . . Overloaded Fab Kills . | . . . Hacking | -11 -10 -10 --------- Run | Yrd Mat Sub Machines Accessed 10 | . 9 1 Terminals 6 | . 6 . Fabricators . | . . . Repair Stations 1 | . 1 . Recycling Units 2 | . 2 . Scanalyzers . | . . . Garrison Access . | . . . Total Hacks 26 | . 23 3 Successful 16 | . 13 3 Failed 10 | . 10 . Catastrophic . | . . . Database Lockouts . | . . . Manual 8 | . 8 . Terminals 15 | . 15 . Fabricators . | . . . Repair Stations 3 | . 3 . Recycling Units 5 | . 5 . Scanalyzers . | . . . Garrison Access . | . . . Terminal Hacks 7 | . 4 3 Record 3 | . . 3 Branch Access Points 1 | . 1 . Alert Level 1 | . 1 . Unreport Threat 1 | . 1 . Transport Status 1 | . 1 . Fabricator Hacks . | . . . Repair Station Hacks 2 | . 2 . Scan Component 1 | . 1 . Repair 1 | . 1 . Recycling Unit Hacks 3 | . 3 . Retrieve Components 3 | . 3 . Scanalyzer . | . . . Garrison Access Hacks . | . . . Unauthorized Hacks 4 | . 4 . Terminals 4 | . 4 . Botnet 4 | . 4 . Fabricators . | . . . Repair Stations . | . . . Recycling Units . | . . . Scanalyzers . | . . . Garrison Access . | . . . Data Cores Recovered . | . . . Used . | . . . Hacking Detections 5 | . 5 . Full Trace Events 2 | . 2 . Feedback Events 1 | . 1 . Corruption 1 | . 1 . Feedback Blocked . | . . . Robot Schematics Acquired . | . . . Robots Built . | . . . Authchips . | . . . Time . | . . . Total Robot Build Rating . | . . . Part Schematics Acquired . | . . . Parts Built . | . . . Authchips . | . . . Time . | . . . Total Part Build Rating . | . . . Parts Repaired 1 | . 1 . Time 26 | . 26 . Parts Recycled . | . . . Recycled Matter . | . . . Retrieved Matter . | . . . Retrieved Components 8 | . 8 . Parts Scanalyzed . | . . . Part Schematics Acquired . | . . . Parts Damaged . | . . . Bothacking | -11 -10 -10 ------------ Run | Yrd Mat Sub Used RIF Installer . | . . . Robots Hacked . | . . . Non-combat . | . . . Combat . | . . . Robot Hacks Applied . | . . . Relay Couplers Released . | . . . Fabnet Peak Effective % . | . . . Robots Rewired . | . . . Allies Hacked . | . . . Hacks Repelled . | . . . Allies | -11 -10 -10 -------- Run | Yrd Mat Sub Total Allies . | . . . Largest Group . | . . . Highest-Rated Group . | . . . Highest-Rated Ally . | . . . Total Orders . | . . . Ally Attacks . | . . . Total Damage . | . . . Kills . | . . . Allies Corrupted . | . . . Allies Melted . | . . . Intel | -11 -10 -10 ------- Run | Yrd Mat Sub Robot Analysis Total . | . . . Derelict Logs Recovered 1 | . . 1 Drone Launches . | . . . Drone Recoveries . | . . . Exploration | -11 -10 -10 ------------- Run | Yrd Mat Sub Turns Passed 3754 | 50 1721 1983 Spaces Moved 2116 | 28 932 1156 Core 4 | 4 . . Treads 2112 | 24 932 1156 Legs . | . . . Wheels . | . . . Hover . | . . . Flight . | . . . Fastest Speed 50 | 50 160 160 Average Speed 159 | 144 160 160 Slowest Speed 160 | 160 160 160 Overloaded Moves . | . . . Propulsion Burnouts . | . . . Robots Hopped . | . . . Cave-ins Triggered . | . . . Exploration Rate (%) 50 | 3 97 51 Regions Visited 2 Branch Regions 1 Pre-discovered Areas 1 | . . 1 Known Exits Taken . | . . . Unknown Exits Taken 2 | 1 1 . Scrap Searched 5 | . . 5 Spaces Dug . | . . . Terrain Destroyed 1 | . . 1 Melee . | . . . Projectile 1 | . . 1 AOE . | . . . Terrain Rammed . | . . . Walls Destroyed . | . . . Machines Disabled . | . . . Actions | -11 -10 -10 --------- Run | Yrd Mat Sub Total 2324 | 35 1068 1221 Wait 51 | . 42 9 Move 2114 | 27 931 1156 Hop . | . . . Pick Up 19 | 2 15 2 Fast Attach 8 | 6 2 . Attach 4 | . 1 3 Detach . | . . . Swap 19 | . 9 10 Drop 13 | . 9 4 Fire 95 | . 59 36 Melee 1 | . . 1 Ram . | . . . Kick . | . . . Crush . | . . . Escape Stasis . | . . . Rewire . | . . . Trap . | . . . Miscellaneous . | . . . Route ------- -11/Scrapyard -10/Materials (discovered 6 exits: [*Mat x3] / *Min x2 / *Sub) -10/Subcaves (discovered 3 exits: [*Mat x2] / [Rec]) History --------- Turn | Location | Event 29 | -11/Scrapyard | Discovered new exit (range 15) 51 | -11/Scrapyard | Entered Materials 164 | -10/Materials | Identified exit to Mines 313 | -10/Materials | Build established: Mutant 569 | -10/Materials | Discovered new exit (range 7) 990 | -10/Materials | Discovered new exit (range 8) 1464 | -10/Materials | Discovered new exit (range 16) 1648 | -10/Materials | Repaired Lgt. Treads 1763 | -10/Materials | Discovered new exit (range 6) 1772 | -10/Materials | Entered Subcaves 1784 | -10/Subcaves | Learned Materials non-interactive machine intel 1820 | -10/Subcaves | Shifting Twisted Machinery released Sub. Beam Cannon 1828 | -10/Subcaves | Shifting Twisted Machinery released Mak. Spear 2037 | -10/Subcaves | Shifting Twisted Machinery released Sub. Shrapnel Launcher 2040 | -10/Subcaves | Shifting Twisted Machinery released Sub. Laser 2067 | -10/Subcaves | Discovered new exit (range 8) 2556 | -10/Subcaves | Visited Clippyterm 2561 | -10/Subcaves | Learned location of Deep Caves (-6) 2575 | -10/Subcaves | Discovered new exit (range 5) 2669 | -10/Subcaves | Build established: Scavenger-Mutant 2996 | -10/Subcaves | Discovered new exit (range 16) 3013 | -10/Subcaves | Disturbed a concealed Subdweller 3315 | -10/Subcaves | Build established: Mutant 3730 | -10/Subcaves | Core integrity fell below 50% 3746 | -10/Subcaves | Core integrity fell below 20% 3755 | -10/Subcaves | Destroyed by F4-EFN(R) with Subdweller Machine Gun Last Messages --------------- 03298_ NI1Y:Y|F3FH=<0,PCDL2SEUGU2EA4FQG%T 03338_ System corrupted: Heat flow error (+270). 03392_ Acquired 10 matter. 03397_ System corrupted: FCS attempts to trigger Hvy. Battle Rifle. 03397_ System corrupted: Hvy. Battle Rifle misfires. 03422_ System corrupted: Component data lost. 03459_ System corrupted: Matter fused (-8). 03504_ QLQ5HD%IC=8MMT83GG# 5FFI35UT=OTR:OVW/ 03544_ System corrupted: Matter fused (-5). 03566_ System corrupted: Heat flow error (+159). 03597_ System corrupted: Component data lost. 03604_ Acquired 8 matter. 03616_ System corrupted: Energy discharge (-82). 03694_ System corrupted: Matter fused (-8). 03724_ System corrupted: Energy discharge (-100). 03726_ Ion Engine destroyed. 03739_ Lgt. Treads destroyed. 03743_ Destroyed Scrap Shield. 03746_ E2-A11(R) destroyed. 03746_ Switching to secondary target: F4-EFN(R). Map ----- +----------------------------------------------------+ | #### ### ###???????????????????????????????# | | ### ##???????????????????????????????# | | ## ##???????????????????????????????# | | ## ###???????????????????????????????? | | ### #####???????????######??????????????? | | #### ### #####?????????#########??????????????? | | ?### #######???????######### ##??????????????? | | ?## ####????????###### ##??????????????? | | ?### ##??????????## ##??????????????? | | ?#### #####?????????### """"" ##??????????????? | | ??### ################ "" "###??????????????? | | ??## ################" "" ####??????????????? | | ??### #### ## ####"| ""####???????????????? | | ###### ### """" ##""###????????????????? | | ###### ### """"" ##""###????????????????? | | ## ### " " """"" ##????????????????? | | ### " """" "###????????????????? | | ### ##""""####????????????????? | | ## ### ## """###?????????????????? | | ############# #####????????????????? | | ####################????????????????? | | [ #### ### ### ### "##????????????????? | | #### ### ## "##????????????????? | | ### ### ## R ###????????????????? | | ###### %! ##?????????????????? | | ###### @## ##?????????????????? | | ##### ## # ?????????????????? | | ##? ?????????????????? | | ## ### ##? ##??????????????? | | ## #### #####?## ###?????????????? | | ## ########### ?### ##?????????????? | | ## ######## ?????## ###?????????????? | | ### ##### ##????????????? ###?????????????? | | ## ###### ??????????? #??????????????? | | ## ######?#### ? #?????????????????????? | | ##########??#### ##?????????????????????? | | #####????????#### ##?????????????????????? | | ???????????????## ##?????????????????????? | | ????????????????? ##?????????????????????? | | ????????????????? ?????????????????????? | | ????????????????? ??????????????????????? | | ????????????????? ???????????????????????? | | ????????????????? ### ???????????????????????? | | ?????????????????##### ?????????????????????????? | | ????????????????????###??????????????????????????? | | ?????????????????????????????????????????????????? | | ?????????????????????????????????????????????????? | | ?????????????????????????????????????????????????? | | ?????????????????????????????????????????????????? | | ?????????????????????????????????????????????????? | +----------------------------------------------------+ Best States ------------- Heat Dissipation 25 Energy Generation 10 Energy Capacity 250 Matter Stores 300 Matter Capacity 300 Sight Range 16 Terrain Scan Density 10 Armor Coverage 150 Propulsion Shielding 33 Evasion (%) 40 Recoil Reduction 2 Item Schematics ----------------- None Robot Schematics ------------------ None Fabricated ------------ Nothing Alien Tech Used ----------------- None Achievements -------------- None Challenges ------------ None Game ------ Seed TeslaConcussiveWarhead Manual? 0 Play Time 00:29:01 Cumulative 108.2 hours Start 2024.07.23 @ 17:56:27 End 2024.07.23 @ 22:20:31 Sessions 2 Manual Loads 0 Difficulty Rogue Special Mode None Game No. 60 Rogue 59 Adventurer 1 Explorer 0 Win Type - Total 1 Types 1/0/0/0/0/0/0/0/0 Lore% 50 Gallery% 47 Achievement% 45 Wizard Run 0 Options --------- Layout 1 ASCII 0 Keyboard 0 Movement Mouse Keybinds 0 Fullscreen 1 Font 24/Proggy Map View 76x35 Zoom Use 0% Tactical HUD 1 Map Filters NONE Filters NONE Steam 1 RUN: 07dd6957-a811-4527-806e-cadea98c082d